bitfinex/quotes_SOLUSD_20250201
["timestamp","ask_amount","ask_price","bid_price","bid_amount"]
[1738436060725,0.063,224.81,224.75,8.36772491]
[1738436061036,0.063,224.81,224.7,11.1259]
[1738436061037,0.063,224.81,224.72,8.36772491]
[1738436061232,0.063,224.81,224.74,8.36772491]
[1738436061605,0.063,224.81,224.72,8.36772491]
[1738436061931,0.063,224.81,224.69,10.11252491]
[1738436062436,0.063,224.81,224.7,8.36772491]
[1738436062833,0.063,224.81,224.72,8.36772491]
[1738436063037,0.063,224.81,224.74,8.36772491]
[1738436064514,0.063,224.81,224.75,8.36772491]
[1738436065240,0.063,224.81,224.75,12.81702491]
[1738436065740,0.063,224.81,224.75,17.52235352]
[1738436066442,0.063,224.81,224.76,13.07305352]
[1738436066822,0.063,224.81,224.75,13.07305352]
[1738436067232,0.063,224.81,224.77,13.07305352]
[1738436068237,0.063,224.81,224.75,13.07305352]
[1738436070423,0.063,224.81,224.75,17.52235352]
[1738436070837,0.063,224.81,224.76,13.07305352]
[1738436072262,0.063,224.81,224.8,13.07305352]
[1738436073653,0.063,224.81,224.8,17.52135352]
[1738436073857,0.063,224.81,224.8,30.93320205]
[1738436074147,0.063,224.93,224.8,30.93320205]
[1738436074148,0.063,224.93,224.81,15.41184853]
[1738436074368,0.063,224.93,224.88,14.62845352]
[1738436074528,0.063,224.93,224.92,13.07305352]
[1738436075026,0.063,224.93,224.91,13.07305352]
[1738436075431,0.063,224.93,224.89,13.07305352]
[1738436075630,0.063,224.93,224.88,1.5554]
[1738436076240,0.063,224.93,224.84,13.07305352]
[1738436076435,0.063,224.93,224.83,19.07605352]
[1738436076624,0.063,224.93,224.83,14.62845352]
[1738436077563,0.063,224.93,224.83,1.5554]
[1738436077763,6.4349,224.93,224.79,13.07305352]
[1738436077940,0.6935709,224.92,224.78,14.62845352]
[1738436078138,0.6935709,224.92,224.78,1.5554]
[1738436078372,20.0,224.9,224.78,1.5554]
[1738436078660,20.0,224.9,224.75,13.07305352]
[1738436078661,0.6936759,224.89,224.75,13.07305352]
[1738436079156,0.6936759,224.89,224.76,13.07305352]
[1738436080288,0.6936759,224.89,224.75,13.07305352]
[1738436080436,2.2845759,224.89,224.75,13.07305352]
[1738436082479,22.2845759,224.89,224.75,13.07305352]
[1738436082676,22.2845759,224.89,224.72,13.07305352]
[1738436082876,20.0,224.85,224.72,13.07305352]
[1738436083077,0.69385349,224.84,224.72,13.07305352]
[1738436083449,0.69385349,224.84,224.71,13.07305352]
[1738436084876,0.69385349,224.84,224.71,17.52315352]
[1738436085065,0.69385349,224.84,224.75,0.03]
[1738436087681,0.69378081,224.85,224.78,13.07305352]
[1738436087882,0.6937284,224.84,224.75,13.10305352]
[1738436088876,0.6937284,224.84,224.76,13.07305352]
[1738436089073,0.6937284,224.84,224.75,13.10305352]
[1738436091374,0.6937284,224.84,224.76,13.07305352]
[1738436091576,20.69376373,224.85,224.77,13.07305352]
[1738436092574,20.69376373,224.85,224.78,13.07305352]
[1738436092818,20.0,224.85,224.79,13.07305352]
[1738436093084,6.1272,224.88,224.81,13.07305352]
[1738436093279,20.0,224.85,224.81,13.07305352]
[1738436093663,6.1272,224.88,224.81,13.07305352]
[1738436093978,6.1272,224.88,224.8,13.07305352]
[1738436094782,6.8208089,224.88,224.8,13.07305352]
[1738436095481,6.1272,224.88,224.8,13.07305352]
[1738436095650,6.1272,224.88,224.81,13.07305352]
[1738436096354,6.1272,224.88,224.8,13.07305352]
[1738436097610,0.063,224.89,224.81,13.07305352]
[1738436099394,0.063,224.89,224.82,13.07305352]
[1738436100100,0.063,224.89,224.84,13.07305352]
[1738436100890,0.063,224.89,224.78,16.07804853]
[1738436100891,0.063,224.89,224.86,13.07305352]
[1738436101866,0.063,224.89,224.81,13.07305352]
[1738436102204,0.75652257,224.89,224.79,13.07305352]
[1738436102571,0.75652257,224.89,224.78,14.73925352]
[1738436102964,0.75652257,224.89,224.75,13.10305352]
[1738436103165,0.75652257,224.89,224.75,0.03]
[1738436103401,20.75652257,224.89,224.75,0.03]
[1738436103969,20.75652257,224.89,224.75,13.10305352]
[1738436104400,0.75652257,224.89,224.76,13.07305352]
[1738436104570,0.69366821,224.88,224.77,13.07305352]
[1738436105504,0.69366821,224.88,224.75,4.4793]
[1738436105505,0.75663123,224.89,224.78,13.07305352]
[1738436105698,0.75663123,224.89,224.77,13.07305352]
[1738436106701,0.063,224.89,224.81,13.07305352]
[1738436107203,0.063,224.89,224.84,13.07305352]
[1738436107407,0.063,224.89,224.81,13.07305352]
[1738436107602,0.063,224.89,224.82,13.07305352]
[1738436107902,0.063,224.89,224.83,13.07305352]
[1738436108196,0.063,224.89,224.88,13.07305352]
[1738436108603,0.063,224.89,224.88,26.48490205]
[1738436109676,0.063,224.93,224.89,13.41184853]
[1738436109990,0.063,224.93,224.92,26.48490205]
[1738436110380,6.1886,225.04,224.92,26.48490205]
[1738436110381,0.063,225.04,224.95,1.0]
[1738436110599,0.063,225.04,225.03,13.07305352]
[1738436110778,0.063,225.04,225.0,13.07305352]
[1738436111104,0.063,225.04,224.99,13.07305352]
[1738436111270,0.063,225.04,225.01,13.07305352]
[1738436111683,0.063,225.04,225.0,13.07305352]
[1738436111883,0.063,225.04,224.96,13.41184853]
[1738436111884,0.063,225.04,224.98,13.07305352]
[1738436112079,0.063,225.04,225.0,13.07305352]
[1738436112687,0.063,225.04,225.01,13.07305352]
[1738436113386,0.063,225.04,225.0,13.07305352]
[1738436113684,0.063,225.04,224.97,13.07305352]
[1738436113883,0.063,225.04,224.96,13.07305352]
[1738436114813,0.063,225.04,224.95,13.07305352]
[1738436115020,1.6009,225.02,224.89,13.07305352]
[1738436115221,0.69319061,225.01,224.87,14.61835352]
[1738436115404,20.0,225.0,224.85,13.07305352]
[1738436115724,20.69333096,224.99,224.84,13.07305352]
[1738436115923,20.69333096,224.99,224.83,13.10305352]
[1738436117011,20.69333096,224.99,224.83,0.03]
[1738436117390,0.69333096,224.99,224.83,0.03]
[1738436117601,2.98,224.98,224.83,0.03]
[1738436117819,0.693451,224.97,224.83,0.03]
[1738436118622,20.0,224.93,224.83,0.03]
[1738436118804,0.6936139,224.92,224.83,0.03]
[1738436121321,1.5167,224.91,224.83,0.03]
[1738436121491,0.69374684,224.9,224.83,0.03]
[1738436122622,20.0,224.86,224.83,0.03]
[1738436122787,0.6937932,224.85,224.83,0.03]
[1738436128625,20.69376203,224.86,224.83,0.03]
[1738436129427,10.69376203,224.86,224.83,0.03]
[1738436129607,0.69376203,224.86,224.83,0.03]
[1738436129927,0.69374612,224.85,224.83,0.03]
[1738436130116,0.69374366,224.88,224.83,0.03]
[1738436132729,20.0,224.86,224.83,0.03]
[1738436133025,0.69385035,224.85,224.83,0.03]
[1738436144338,0.69382517,224.84,224.83,0.03]
[1738436144511,20.0,224.86,224.83,0.03]
[1738436144711,0.69385134,224.85,224.83,0.03]
[1738436148213,20.0,224.84,224.75,0.03]
[1738436148435,0.69407013,224.83,224.75,0.03]
[1738436149121,20.69407013,224.83,224.75,0.03]
[1738436149321,20.0,224.79,224.75,0.03]
[1738436149525,0.69413958,224.78,224.75,0.03]
[1738436151556,0.69407358,224.83,224.75,0.03]
[1738436155946,20.0,224.79,224.75,0.03]
[1738436156152,0.69408421,224.78,224.75,0.03]
[1738436157131,0.69406338,224.77,224.75,0.03]
[1738436157341,0.69406338,224.81,224.75,0.03]
[1738436161425,20.69406338,224.81,224.75,0.03]
[1738436165059,0.69406338,224.81,224.75,0.03]
[1738436165265,0.69401037,224.8,224.75,0.03]
[1738436165557,20.0,224.82,224.75,0.03]
[1738436165943,0.69387899,224.81,224.75,0.03]
[1738436166330,0.69388959,224.84,224.76,8.37242888]
[1738436167638,14.1125331,224.85,224.76,8.37242888]
[1738436167840,14.1125331,224.85,224.77,8.37242888]
[1738436168052,14.1125331,224.85,224.78,8.37242888]
[1738436169337,0.063,224.85,224.8,8.37242888]
[1738436170382,0.063,224.85,224.77,8.37242888]
[1738436171348,0.063,224.85,224.75,0.03]
[1738436171951,0.063,224.85,224.77,8.37242888]
[1738436172241,0.063,224.85,224.8,8.37242888]
[1738436173039,0.063,224.85,224.83,8.37242888]
[1738436173263,0.063,224.85,224.84,8.37242888]
[1738436173464,0.063,224.88,224.84,8.37242888]
[1738436173663,0.063,224.88,224.87,8.37242888]
[1738436174234,0.063,224.88,224.87,21.78427741]
[1738436175965,0.063,225.0,224.88,13.41184853]
[1738436176166,0.063,225.0,224.91,13.05679357]
[1738436176538,0.063,225.0,224.88,4.4468]
[1738436176539,0.063,225.0,224.94,13.05679357]
[1738436177043,0.063,225.0,224.93,14.63759357]
[1738436177769,0.063,225.0,224.94,26.4686421]
[1738436177974,0.063,225.0,224.97,13.05679357]
[1738436178281,0.063,225.0,224.99,13.05679357]
[1738436178444,0.063,225.0,224.99,26.4686421]
[1738436178774,0.063,225.0,224.99,13.05679357]
[1738436180467,0.063,225.04,224.99,30.9131421]
[1738436180659,0.063,225.04,225.02,13.05679357]
[1738436180862,0.063,225.04,225.02,13.41184853]
[1738436181047,0.063,225.04,224.95,6.6175]
[1738436181247,0.063,225.04,224.92,13.05679357]
[1738436181454,0.063,225.04,224.88,1.0]
[1738436181455,0.063,225.04,224.94,13.41184853]
[1738436181670,0.063,225.04,224.9,13.05679357]
[1738436181853,0.75612981,225.04,224.91,13.05679357]
[1738436182048,0.75612981,225.04,224.89,6.1958]
[1738436182049,0.063,225.04,224.96,26.4686421]
[1738436182376,0.063,225.04,224.98,26.4686421]
[1738436183946,0.063,225.0,224.98,26.4686421]
[1738436186177,0.063,225.0,224.99,26.4686421]
[1738436187086,0.063,225.0,224.99,13.41184853]
[1738436189490,0.063,225.0,224.99,26.4686421]
[1738436195001,0.063,225.0,224.93,1.5808]
[1738436195286,0.063,225.0,224.99,0.03]
[1738436196803,6.1198,225.0,224.99,0.03]
[1738436197103,6.81303185,225.0,224.99,0.03]
[1738436197466,6.81303185,225.0,224.87,0.03]
[1738436197467,20.0,224.97,224.87,0.03]
[1738436197995,20.0,224.97,224.89,13.41184853]
[1738436198169,20.0,224.97,224.92,13.05679357]
[1738436198375,6.1198,225.0,224.93,13.05679357]
[1738436198908,0.063,225.0,224.93,13.05679357]
[1738436199489,0.063,225.0,224.88,13.05679357]
[1738436199689,0.063,225.0,224.87,0.03]
[1738436200408,0.063,225.0,224.87,13.44184853]
[1738436200599,0.75624915,225.0,224.87,13.44184853]
[1738436200781,20.0,224.96,224.87,0.03]
[1738436200983,0.69337077,224.95,224.87,0.03]
[1738436203804,20.0,224.91,224.87,0.03]
[1738436204104,0.69357441,224.9,224.87,0.03]
[1738436211286,20.0,224.86,224.76,0.03]
[1738436211480,0.6938642,224.85,224.76,0.03]
[1738436211684,20.0,224.81,224.76,0.03]
[1738436215485,0.69389486,224.8,224.76,0.03]
[1738436221386,20.0,224.77,224.76,0.03]
[1738436222100,0.69413871,224.77,224.76,0.03]
[1738436223111,0.69416159,224.77,224.76,0.03]
[1738436223788,0.69408608,224.79,224.76,0.03]
[1738436226040,3.67401725,224.8,224.76,0.03]
[1738436226234,2.98,224.8,224.76,0.03]
[1738436226406,20.0,224.81,224.76,0.03]
[1738436226735,0.69390445,224.8,224.76,0.03]
[1738436229033,0.69391866,224.8,224.76,0.03]
[1738436232138,0.6939265,224.83,224.76,0.03]
[1738436232445,0.69378585,224.85,224.76,14.60419357]
[1738436232740,0.69378585,224.85,224.76,1.5474]
[1738436233146,0.063,224.87,224.77,32.9340421]
[1738436233740,0.063,224.87,224.78,8.36487714]
[1738436235733,0.063,224.87,224.77,6.4654]
[1738436235935,0.063,224.87,224.76,1.5474]
[1738436237451,0.063,224.87,224.77,26.48205996]
[1738436237833,0.063,224.87,224.77,13.41184853]
[1738436238351,0.063,224.87,224.76,1.5474]
[1738436238953,0.063,224.87,224.77,26.48205996]
[1738436239318,0.063,224.87,224.79,13.41184853]
[1738436240035,0.063,224.87,224.78,13.41184853]
[1738436241757,0.063,224.87,224.76,14.61761143]
[1738436242248,0.063,224.87,224.77,13.41184853]
[1738436242429,0.063,224.87,224.76,1.5474]
[1738436242970,20.0,224.86,224.76,1.5474]
[1738436243127,0.69378859,224.85,224.76,1.5474]
[1738436246563,0.063,224.87,224.76,14.61761143]
[1738436246744,0.063,224.87,224.77,13.07021143]
[1738436246946,20.0,224.86,224.76,1.5474]
[1738436247153,20.69371479,224.86,224.76,1.5474]
[1738436247460,20.0,224.86,224.76,1.5474]
[1738436247756,20.0,224.86,224.76,14.61761143]
[1738436248334,20.0,224.86,224.77,13.07021143]
[1738436248536,20.0,224.86,224.76,1.5474]
[1738436249043,0.063,224.87,224.83,13.07021143]
[1738436249244,0.063,224.87,224.82,13.07021143]
[1738436250334,0.063,224.87,224.83,13.41184853]
[1738436251951,0.063,224.87,224.83,26.48205996]
[1738436252153,0.063,224.87,224.83,13.07021143]
[1738436253953,0.063,224.87,224.84,13.07021143]
[1738436254136,0.063,224.87,224.83,4.4477]
[1738436254137,0.063,224.87,224.85,26.48205996]
[1738436254345,0.063,224.87,224.86,28.10235996]
[1738436257766,0.063,224.87,224.86,27.83649281]
[1738436258765,0.063,224.87,224.86,23.38929281]
[1738436259069,0.063,224.87,224.83,8.38714428]
[1738436259361,0.063,224.87,224.83,0.03]
[1738436259950,0.063,224.87,224.84,21.76899281]
[1738436260163,0.063,224.87,224.85,8.35714428]
[1738436260545,0.063,224.87,224.83,8.38714428]
[1738436260943,0.063,224.87,224.83,0.03]
[1738436266078,0.063,224.87,224.86,13.06861975]
[1738436266954,0.063,224.87,224.84,13.06861975]
[1738436267261,0.063,224.87,224.83,0.03]
[1738436267665,0.063,224.87,224.83,13.44184853]
[1738436267877,0.063,224.87,224.83,26.51046828]
[1738436268958,0.063,224.87,224.84,13.06861975]
[1738436269292,0.063,224.87,224.83,13.09861975]
[1738436269496,0.063,224.87,224.83,0.03]
[1738436275765,20.0,224.85,224.83,0.03]
[1738436276075,0.063,224.87,224.83,0.03]
[1738436276672,20.0,224.85,224.83,0.03]
[1738436276881,0.063,224.87,224.83,0.03]
[1738436279900,20.0,224.85,224.83,0.03]
[1738436281298,0.89687571,224.87,224.83,0.03]
[1738436281488,20.0,224.85,224.83,0.03]
[1738436285201,0.063,224.87,224.83,0.03]
[1738436285694,0.063,224.87,224.84,13.06861975]
[1738436285899,0.063,224.87,224.85,13.06861975]
[1738436286793,0.063,224.87,224.86,13.06861975]
[1738436287486,0.063,224.87,224.83,13.44184853]
[1738436287487,0.063,224.87,224.85,13.06861975]
[1738436287694,0.063,224.87,224.83,0.03]
[1738436288203,0.063,224.87,224.83,13.09861975]
[1738436288399,0.063,224.87,224.84,13.06861975]
[1738436291916,0.063,224.87,224.83,26.51046828]
[1738436295325,0.063,224.87,224.84,13.06861975]
[1738436297021,0.063,224.87,224.85,13.41184853]
[1738436297329,0.063,224.87,224.86,26.48046828]
[1738436298516,0.063,224.87,224.86,30.92766828]
[1738436298823,0.063,225.0,224.89,21.0]
[1738436299008,0.063,225.0,224.94,13.06861975]
[1738436300111,0.063,225.0,224.95,13.41184853]
[1738436300741,0.063,225.0,224.95,26.48046828]
[1738436301038,0.063,225.0,224.97,13.06861975]
[1738436301608,0.063,225.0,224.98,13.06861975]
[1738436301839,0.063,225.0,224.98,26.48046828]
[1738436302047,0.063,225.0,224.98,13.06861975]
[1738436304539,0.063,225.0,224.98,26.48046828]
[1738436306341,0.063,225.0,224.98,30.92526828]
[1738436306705,0.063,225.0,224.98,31.92526828]
[1738436306915,0.063,225.0,224.98,38.08416828]
[1738436307247,0.063,225.07,225.02,22.0]
[1738436307423,0.063,225.07,225.06,59.54908803]
[1738436307754,0.063,225.07,225.06,61.54908803]
[1738436308341,0.063,225.1,225.07,13.41184853]
[1738436308643,0.063,225.1,225.09,50.92306828]
[1738436309211,0.063,225.12,225.1,15.99454853]
[1738436309411,0.063,225.16,225.14,13.41184853]
[1738436309640,0.063,225.16,225.15,26.48046828]
[1738436310854,0.063,225.16,225.15,30.92186828]
[1738436311016,0.063,225.19,225.16,13.41184853]
[1738436311213,0.063,225.19,225.18,26.48046828]
[1738436311416,0.063,225.19,225.18,13.06861975]
[1738436311645,0.063,225.19,225.16,13.06861975]
[1738436312023,0.063,225.19,225.17,13.06861975]
[1738436312419,0.063,225.19,225.18,13.06861975]
[1738436313450,0.063,225.19,225.18,26.48046828]
[1738436315224,0.063,225.19,225.17,13.06861975]
[1738436315626,0.063,225.19,225.18,13.06861975]
[1738436316027,0.063,225.19,225.17,13.06861975]
[1738436317160,0.063,225.19,225.18,13.06861975]
[1738436318754,0.063,225.19,225.18,26.48046828]
[1738436319463,0.063,225.19,225.18,30.92126828]
[1738436320356,0.063,225.19,225.18,32.04675828]
[1738436320746,0.063,225.26,225.21,46.48046828]
[1738436321741,0.063,225.26,225.21,52.54796828]
[1738436321956,0.063,225.26,225.21,50.92076828]
[1738436324875,0.063,225.26,225.21,26.48046828]
[1738436325041,0.063,225.26,225.19,13.06861975]
[1738436325438,0.063,225.26,225.21,13.41184853]
[1738436325839,0.063,225.26,225.19,13.06861975]
[1738436326250,0.063,225.26,225.15,13.09861975]
[1738436326660,0.063,225.26,225.16,13.41184853]
[1738436327654,0.063,225.26,225.15,13.09861975]
[1738436327853,0.89544605,225.26,225.15,0.03]
[1738436329571,8.0304,225.21,225.15,0.03]
[1738436330069,0.83264727,225.2,225.15,0.03]
[1738436330450,20.0,225.18,225.15,0.03]
[1738436332075,0.83277008,225.17,225.15,0.03]
[1738436333575,20.0,225.18,225.15,0.03]
[1738436333979,0.83278784,225.17,225.15,0.03]
[1738436337261,20.0,225.18,225.15,0.03]
[1738436339089,8.0304,225.21,225.15,0.03]
[1738436339296,6.453,225.21,225.15,13.09861975]
[1738436339474,0.063,225.22,225.16,13.06861975]
[1738436339865,0.063,225.22,225.15,0.03]
[1738436340267,0.89554889,225.22,225.15,0.03]
[1738436341572,20.0,225.21,225.15,0.03]
[1738436341769,0.83284203,225.2,225.15,0.03]
[1738436341980,20.0,225.16,225.15,0.03]
[1738436343492,28.1686,225.16,225.15,0.03]
[1738436343697,43.41346286,225.16,224.99,1.511]
[1738436343876,33.41184853,225.15,224.99,1.511]
[1738436344084,0.83308989,225.14,224.99,1.511]
[1738436345790,0.83308989,225.14,224.99,14.57961975]
[1738436348086,33.41184853,225.13,224.99,1.511]
[1738436348286,0.83313009,225.12,224.99,1.511]
[1738436349407,20.0,225.08,224.99,1.511]
[1738436349709,0.83327443,225.07,224.94,15.03434853]
[1738436350382,0.83327443,225.07,224.95,13.06861975]
[1738436350587,0.83327443,225.07,224.96,13.06861975]
[1738436351101,0.75439393,225.1,224.94,15.03434853]
[1738436351102,0.8332293,225.1,225.0,13.06861975]
[1738436351286,0.83307901,225.15,225.0,13.06861975]
[1738436351479,20.0,225.12,225.0,13.06861975]
[1738436351794,20.83309935,225.11,225.0,13.06861975]
[1738436351990,20.83309935,225.11,225.01,13.06861975]
[1738436352188,0.83309935,225.11,225.01,13.06861975]
[1738436352390,0.83308283,225.13,225.01,13.06861975]
[1738436353814,0.83308283,225.13,225.03,13.06861975]
[1738436354001,8.1686,225.16,225.06,13.06861975]
[1738436354002,6.5579,225.16,225.06,13.06861975]
[1738436354305,0.83295531,225.18,225.09,13.06861975]
[1738436354494,0.83295531,225.18,225.08,13.06861975]
[1738436355287,0.8327977,225.2,225.08,13.06861975]
[1738436355494,20.0,225.19,225.08,13.06861975]
[1738436355707,0.83279527,225.18,225.08,13.06861975]
[1738436355899,2.40994095,225.21,225.1,13.06861975]
[1738436356096,20.0,225.19,225.1,13.06861975]
[1738436356309,2.40994095,225.21,225.1,13.06861975]
[1738436356917,20.0,225.19,225.1,13.06861975]
[1738436357280,6.5475,225.18,224.91,1.0]
[1738436357585,1.0,225.13,224.93,13.06861975]
[1738436357800,1.0,225.15,224.93,13.06861975]
[1738436357801,20.0,225.08,224.93,13.06861975]
[1738436357990,0.83322341,225.07,224.94,13.41184853]
[1738436362216,20.0,225.04,224.92,0.03]
[1738436362509,0.83336325,225.03,224.92,0.03]
[1738436363511,1.0,224.94,224.92,0.03]
[1738436363714,20.0,224.89,224.83,0.03]
[1738436363919,0.83398526,224.88,224.83,0.03]
[1738436364234,0.83389234,224.92,224.83,0.03]
[1738436364384,3.93389234,224.97,224.83,0.03]
[1738436364587,20.0,224.96,224.83,0.03]
[1738436364791,0.8336645,224.95,224.83,0.03]
[1738436374310,0.8336645,224.95,224.84,20.88352407]
[1738436374539,0.8336645,224.95,224.85,22.41032407]
[1738436375047,0.8336645,224.95,224.85,1.5268]
[1738436375408,0.8966645,224.95,224.85,1.5268]
[1738436378742,1.0,224.92,224.83,0.03]
[1738436378917,20.0,224.87,224.83,0.03]
[1738436379117,0.8340334,224.86,224.83,0.03]
[1738436382644,0.83392989,224.93,224.83,0.03]
[1738436383141,20.0,224.88,224.83,0.03]
[1738436383331,0.83392962,224.87,224.83,0.03]
[1738436386048,0.83394361,224.9,224.83,0.03]
[1738436387922,20.0,224.87,224.83,0.03]
[1738436388127,0.83404458,224.86,224.83,0.03]
[1738436395339,20.0,224.85,224.83,0.03]
[1738436395538,0.83409421,224.84,224.83,0.03]
[1738436396950,0.83409421,224.84,224.64,0.03]
[1738436396951,2.0,224.79,224.64,0.03]
[1738436397261,33.41184853,224.76,224.64,0.03]
[1738436397462,20.0,224.71,224.64,0.03]
[1738436397756,0.8346086,224.7,224.64,0.03]
[1738436398640,0.83467599,224.72,224.64,0.03]
[1738436398841,20.0,224.73,224.64,0.03]
[1738436399058,20.0,224.7,224.64,0.03]
[1738436399724,3.2,224.76,224.64,0.03]
[1738436399725,20.0,224.73,224.64,0.03]
[1738436399930,0.83458716,224.72,224.64,0.63693889]
[1738436401025,0.83448534,224.75,224.64,0.63693889]
[1738436401741,20.83448534,224.75,224.64,0.03]
[1738436402253,2.0,224.69,224.64,0.03]
[1738436402471,0.83508362,224.68,224.64,0.03]
[1738436403467,20.0,224.65,224.64,0.03]
[1738436403958,1.0,224.72,224.64,0.03]
[1738436403959,1.83481454,224.72,224.64,0.03]
[1738436404161,20.0,224.69,224.64,0.03]
[1738436404464,20.0,224.65,224.64,0.03]
[1738436405263,14.246683,224.68,224.64,0.03]
[1738436405264,0.83483447,224.68,224.64,0.03]
[1738436405450,2.64399406,224.73,224.64,0.03]
[1738436405451,0.83478045,224.67,224.64,0.03]
[1738436406337,0.83481138,224.66,224.64,0.03]
[1738436406858,11.26412182,224.74,224.64,0.03]
[1738436406859,3.22,224.71,224.64,0.03]
[1738436407060,20.83472514,224.7,224.64,0.03]
[1738436413344,0.83472514,224.7,224.64,0.03]
[1738436413544,0.83453491,224.74,224.64,0.03]
[1738436413744,20.83453491,224.74,224.64,0.03]
[1738436413976,0.83453491,224.74,224.64,0.03]
[1738436414148,20.83453491,224.74,224.64,0.03]
[1738436414552,20.83453491,224.74,224.65,1.5834]
[1738436415253,20.0,224.7,224.65,1.5834]
[1738436415454,0.83468835,224.69,224.65,1.5834]
[1738436417568,0.83458782,224.74,224.65,1.5834]
[1738436418188,1.0,224.7,224.64,0.03]
[1738436418360,0.83490182,224.69,224.64,0.03]
[1738436418675,13.41184853,224.68,224.64,0.03]
[1738436418970,0.83481797,224.67,224.64,0.03]
[1738436419270,20.0,224.65,224.64,0.03]
[1738436419863,0.83474747,224.65,224.64,0.03]
[1738436420058,0.83478751,224.68,224.64,0.03]
[1738436420980,1.783048,224.67,224.64,0.03]
[1738436421196,0.83476913,224.66,224.64,0.03]
[1738436422075,0.83476079,224.65,224.64,0.03]
[1738436422253,0.83475587,224.67,224.64,0.03]
[1738436423879,0.063,224.69,224.65,1.551]
[1738436424070,0.063,224.69,224.65,7.6524]
[1738436424586,0.063,224.69,224.65,1.551]
[1738436424788,0.89777047,224.69,224.65,1.551]
[1738436425171,0.063,224.69,224.65,1.551]
[1738436425567,0.063,224.69,224.66,0.60695645]
[1738436426085,0.063,224.69,224.65,1.551]
[1738436426266,0.8975291,224.69,224.65,1.551]
[1738436426472,0.063,224.69,224.65,1.551]
[1738436426972,20.063,224.69,224.65,1.551]
[1738436427190,20.063,224.69,224.64,0.03]
[1738436427191,0.83471539,224.68,224.64,0.03]
[1738436429283,0.063,224.69,224.64,0.03]
[1738436429892,0.063,224.69,224.65,0.60691818]
[1738436430590,0.063,224.69,224.67,13.07524742]
[1738436430891,3.24,224.84,224.69,6.4989]
[1738436431193,20.0,224.81,224.7,0.60644005]
[1738436431393,0.83421996,224.8,224.7,0.60644005]
[1738436431761,0.83423859,224.83,224.7,0.60644005]
[1738436432295,13.41184853,224.86,224.71,1.5163]
[1738436432475,0.83412374,224.85,224.72,0.60617974]
[1738436432892,20.0,224.84,224.72,0.60617974]
[1738436433066,20.0,224.79,224.72,0.60617974]
[1738436433395,20.83431624,224.81,224.73,0.60648316]
[1738436433958,0.83412914,224.83,224.73,0.60648316]
[1738436434190,14.24592389,224.87,224.73,0.60648316]
[1738436434396,0.83407536,224.87,224.72,0.60613959]
[1738436434574,0.83407536,224.87,224.73,13.41184853]
[1738436434768,0.83407536,224.87,224.75,13.41184853]
[1738436434967,0.83407536,224.87,224.76,0.60591068]
[1738436435265,20.83398567,224.86,224.76,0.60591068]
[1738436435889,20.83398567,224.86,224.77,0.60596849]
[1738436436100,20.83398567,224.86,224.74,0.60596849]
[1738436438209,20.83398567,224.86,224.73,0.60604452]
[1738436438391,20.0,224.82,224.71,1.5163]
[1738436438593,0.83428773,224.81,224.71,1.5163]
[1738436439796,20.0,224.77,224.71,1.5163]
[1738436439974,20.0,224.77,224.68,0.03]
[1738436439975,0.8344327,224.76,224.68,0.03]
[1738436441095,0.83435374,224.78,224.68,0.03]
[1738436442467,3.22,224.79,224.69,13.07524742]
[1738436442675,0.83428144,224.82,224.71,13.07524742]
[1738436442872,0.83412962,224.85,224.72,8.48959151]